[Event "*** Titled Tuesday Blitz"]
[Site "Chess.com"]
[Date "2021.03.02"]
[Round "4"]
[White "FlySooHigh"]
[Black "zajka-molotok"]
[Result "0-1"]
[WhiteElo "2696"]
[BlackElo "2483"]
[TimeControl "180+1"]
[EndTime "10:40:32 PST"]
[Termination "zajka-molotok won by resignation"]

1. e4 {[%clk 0:03:00.9]} 1... c6 {[%clk 0:02:57.8]} 2. c4 {[%clk 0:03:00.3]}
2... d5 {[%clk 0:02:57.6]} 3. cxd5 {[%clk 0:03:01.2]} 3... cxd5 {[%clk
0:02:58.5]} 4. exd5 {[%clk 0:03:01.7]} 4... Nf6 {[%clk 0:02:58.3]} 5. Qa4+
{[%clk 0:03:01.6]} 5... Nbd7 {[%clk 0:02:55.7]} 6. Nc3 {[%clk 0:03:01.4]} 6...
g6 {[%clk 0:02:53.9]} 7. Nf3 {[%clk 0:03:01.8]} 7... Bg7 {[%clk 0:02:54.1]} 8.
Bc4 {[%clk 0:03:02.4]} 8... O-O {[%clk 0:02:54.7]} 9. d3 {[%clk 0:03:02.9]} 9...
a6 {[%clk 0:02:44.2]} 10. Qa3 {[%clk 0:03:03]} 10... Re8 {[%clk 0:02:38.3]} 11.
O-O {[%clk 0:03:02.1]} 11... Bf8 {[%clk 0:02:29.8]} 12. Bg5 {[%clk 0:02:29.7]}
12... h6 {[%clk 0:02:24.9]} 13. Bh4 {[%clk 0:02:29.6]} 13... g5 {[%clk 0:02:23]}
14. Bg3 {[%clk 0:02:29.4]} 14... e6 {[%clk 0:02:06.8]} 15. b4 {[%clk 0:02:14.5]}
15... Nb6 {[%clk 0:01:50]} 16. dxe6 {[%clk 0:02:13.8]} 16... Bxe6 {[%clk
0:01:46.1]} 17. Bxe6 {[%clk 0:01:49.4]} 17... Rxe6 {[%clk 0:01:47]} 18. Qb3
{[%clk 0:01:49.2]} 18... Qxd3 {[%clk 0:01:41.1]} 19. Rad1 {[%clk 0:01:49]} 19...
Qc4 {[%clk 0:01:38.7]} 20. Qxc4 {[%clk 0:01:34.9]} 20... Nxc4 {[%clk 0:01:39.6]}
21. Nd5 {[%clk 0:01:04]} 21... Nxd5 {[%clk 0:01:36]} 22. Rxd5 {[%clk 0:01:04.9]}
22... Bxb4 {[%clk 0:01:30.8]} 23. h4 {[%clk 0:00:57.9]} 23... gxh4 {[%clk
0:01:24.6]} 24. Nxh4 {[%clk 0:00:56.8]} 24... b5 {[%clk 0:01:21.4]} 25. Nf5
{[%clk 0:00:56.3]} 25... Bf8 {[%clk 0:01:20.3]} 26. Rfd1 {[%clk 0:00:54]} 26...
Rae8 {[%clk 0:01:12.6]} 27. Kh2 {[%clk 0:00:53]} 27... b4 {[%clk 0:01:09.2]} 28.
R1d4 {[%clk 0:00:52.5]} 28... Ne5 {[%clk 0:01:02.1]} 29. Ra5 {[%clk 0:00:47]}
29... h5 {[%clk 0:00:56.3]} 30. Rh4 {[%clk 0:00:39.7]} 30... Ng4+ {[%clk
0:00:52.7]} 31. Kh3 {[%clk 0:00:40]} 31... Nf6 {[%clk 0:00:50.7]} 32. Rc4 {[%clk
0:00:33.4]} 32... Kh7 {[%clk 0:00:43.1]} 33. f3 {[%clk 0:00:32.8]} 33... Kg6
{[%clk 0:00:42.3]} 34. Nd4 {[%clk 0:00:31.7]} 34... Rb6 {[%clk 0:00:37.5]} 35.
Bc7 {[%clk 0:00:31.6]} 35... Rc8 {[%clk 0:00:31.5]} 36. Bxb6 {[%clk 0:00:27.4]}
36... Rxc4 {[%clk 0:00:31]} 37. Rxa6 {[%clk 0:00:28]} 37... Bd6 {[%clk
0:00:19.1]} 38. Nb3 {[%clk 0:00:24.2]} 38... Be5 {[%clk 0:00:18]} 39. Bf2 {[%clk
0:00:16.7]} 39... Kf5 {[%clk 0:00:16.9]} 40. Ra5 {[%clk 0:00:15.6]} 40... Nd7
{[%clk 0:00:10.2]} 41. Bg3 {[%clk 0:00:10.8]} 41... Ke6 {[%clk 0:00:09.2]} 42.
Bf2 {[%clk 0:00:07.8]} 42... f6 {[%clk 0:00:08.5]} 43. Ra6+ {[%clk 0:00:07.4]}
43... Kf5 {[%clk 0:00:08.3]} 44. Ra5 {[%clk 0:00:07.9]} 44... Ke6 {[%clk
0:00:08.4]} 45. Nd2 {[%clk 0:00:07.3]} 45... Rc2 {[%clk 0:00:07.6]} 46. Ne4
{[%clk 0:00:07.3]} 46... f5 {[%clk 0:00:05.8]} 47. Ng5+ {[%clk 0:00:07.4]} 47...
Kf6 {[%clk 0:00:05.9]} 48. Bh4 {[%clk 0:00:08]} 48... Kg6 {[%clk 0:00:05.3]} 49.
Ra6+ {[%clk 0:00:08]} 49... Bf6 {[%clk 0:00:03.9]} 50. f4 {[%clk 0:00:07.7]}
50... Nc5 {[%clk 0:00:02]} 51. Nf3 {[%clk 0:00:06.8]} 51... Nxa6 {[%clk
0:00:01.7]} 52. Bxf6 {[%clk 0:00:05.5]} 52... Kxf6 {[%clk 0:00:02.6]} 53. Nd4
{[%clk 0:00:05.9]} 53... Rxa2 {[%clk 0:00:03]} 54. g3 {[%clk 0:00:06.8]} 54...
Rb2 {[%clk 0:00:02.8]} 55. Nb3 {[%clk 0:00:07.4]} 55... Rxb3 {[%clk 0:00:02.7]}
0-1

[Event "*** Titled Tuesday Blitz"]
[Site "Chess.com"]
[Date "2021.03.02"]
[Round "4"]
[White "Azde"]
[Black "FMLorneTwitch"]
[Result "0-1"]
[WhiteElo "2439"]
[BlackElo "2451"]
[TimeControl "180+1"]
[EndTime "10:40:33 PST"]
[Termination "FMLorneTwitch won by resignation"]

1. d4 {[%clk 0:03:00.9]} 1... Nf6 {[%clk 0:02:59.1]} 2. c4 {[%clk 0:02:59.4]}
2... e6 {[%clk 0:02:58.9]} 3. Nf3 {[%clk 0:02:58.6]} 3... Bb4+ {[%clk
0:02:59.2]} 4. Bd2 {[%clk 0:02:58.6]} 4... Qe7 {[%clk 0:02:59.7]} 5. g3 {[%clk
0:02:58.5]} 5... b6 {[%clk 0:02:58.1]} 6. Bg2 {[%clk 0:02:58.7]} 6... Bb7 {[%clk
0:02:58.3]} 7. O-O {[%clk 0:02:58.4]} 7... Bxd2 {[%clk 0:02:57.9]} 8. Nbxd2
{[%clk 0:02:58.2]} 8... c5 {[%clk 0:02:55.3]} 9. dxc5 {[%clk 0:02:56.2]} 9...
Qxc5 {[%clk 0:02:56.2]} 10. a3 {[%clk 0:02:53.1]} 10... a5 {[%clk 0:02:55.3]}
11. Re1 {[%clk 0:02:49.4]} 11... d6 {[%clk 0:02:49.2]} 12. e4 {[%clk 0:02:49.2]}
12... Nbd7 {[%clk 0:02:46.2]} 13. Nb3 {[%clk 0:02:41]} 13... Qc7 {[%clk
0:02:38.9]} 14. Nbd4 {[%clk 0:02:40.9]} 14... Ba6 {[%clk 0:02:33.1]} 15. Rc1
{[%clk 0:02:19]} 15... O-O {[%clk 0:02:28.4]} 16. Nb5 {[%clk 0:02:05.8]} 16...
Bxb5 {[%clk 0:02:27.3]} 17. cxb5 {[%clk 0:02:06.7]} 17... Qb8 {[%clk 0:02:23.1]}
18. Rc6 {[%clk 0:01:57]} 18... Ne8 {[%clk 0:02:13.9]} 19. Qd4 {[%clk 0:01:43]}
19... Ra7 {[%clk 0:02:07.6]} 20. h4 {[%clk 0:01:41.9]} 20... Rc7 {[%clk
0:01:51.2]} 21. Rec1 {[%clk 0:01:34.5]} 21... Rxc6 {[%clk 0:01:47]} 22. bxc6
{[%clk 0:01:27.4]} 22... Nc5 {[%clk 0:01:44.3]} 23. Qe3 {[%clk 0:01:11.2]} 23...
a4 {[%clk 0:01:42.1]} 24. h5 {[%clk 0:01:05.1]} 24... h6 {[%clk 0:01:38.5]} 25.
e5 {[%clk 0:01:04.2]} 25... Qc7 {[%clk 0:01:22]} 26. Nd4 {[%clk 0:00:46.6]}
26... dxe5 {[%clk 0:01:06.5]} 27. Nb5 {[%clk 0:00:46.7]} 27... Qe7 {[%clk
0:01:05.6]} 28. Rd1 {[%clk 0:00:45.7]} 28... Nc7 {[%clk 0:00:56.5]} 29. Nc3
{[%clk 0:00:37.3]} 29... f6 {[%clk 0:00:50.3]} 30. Qe2 {[%clk 0:00:35.3]} 30...
Rd8 {[%clk 0:00:46.8]} 31. Rxd8+ {[%clk 0:00:28.2]} 31... Qxd8 {[%clk
0:00:47.7]} 32. Qc4 {[%clk 0:00:28]} 32... Qd4 {[%clk 0:00:45.7]} 33. Qb4 {[%clk
0:00:24.4]} 33... Qxb4 {[%clk 0:00:40.7]} 34. axb4 {[%clk 0:00:25.3]} 34... Nd3
{[%clk 0:00:40.8]} 35. Nxa4 {[%clk 0:00:23.9]} 35... b5 {[%clk 0:00:39.2]} 36.
Nc3 {[%clk 0:00:18.5]} 36... Nxb4 {[%clk 0:00:37.6]} 37. Kf1 {[%clk 0:00:16.7]}
37... Kf7 {[%clk 0:00:36.6]} 38. Ke2 {[%clk 0:00:15.8]} 38... Ke7 {[%clk
0:00:36.7]} 39. Ke3 {[%clk 0:00:12.3]} 39... Nbd5+ {[%clk 0:00:35.8]} 40. Kd3
{[%clk 0:00:10]} 40... Nxc3 {[%clk 0:00:32.9]} 41. Kxc3 {[%clk 0:00:10.9]} 41...
Kd6 {[%clk 0:00:28.5]} 42. Kb4 {[%clk 0:00:10.9]} 42... f5 {[%clk 0:00:27.8]}
43. Ka5 {[%clk 0:00:08.9]} 43... e4 {[%clk 0:00:25.9]} 44. Kb6 {[%clk
0:00:09.1]} 44... b4 {[%clk 0:00:21.3]} 45. b3 {[%clk 0:00:07.1]} 45... e5
{[%clk 0:00:20.5]} 46. Bh3 {[%clk 0:00:06.9]} 46... f4 {[%clk 0:00:19.1]} 47.
Bg2 {[%clk 0:00:04.4]} 47... e3 {[%clk 0:00:18.9]} 48. fxe3 {[%clk 0:00:04.5]}
48... fxe3 {[%clk 0:00:19.3]} 49. Bf3 {[%clk 0:00:05.1]} 49... Nd5+ {[%clk
0:00:18.2]} 50. Bxd5 {[%clk 0:00:03.8]} 50... Kxd5 {[%clk 0:00:19.1]} 51. c7
{[%clk 0:00:04.3]} 51... e2 {[%clk 0:00:19.5]} 52. c8=Q {[%clk 0:00:05.2]} 52...
e1=Q {[%clk 0:00:19.1]} 53. Qc6+ {[%clk 0:00:05.5]} 53... Kd4 {[%clk 0:00:18.9]}
54. Qc5+ {[%clk 0:00:05.5]} 54... Kd3 {[%clk 0:00:18.5]} 55. Qd5+ {[%clk
0:00:05.4]} 55... Kc2 {[%clk 0:00:18.5]} 56. Qc4+ {[%clk 0:00:05.3]} 56... Kb2
{[%clk 0:00:18.6]} 57. Qf7 {[%clk 0:00:05]} 57... Qxg3 {[%clk 0:00:16.7]} 58.
Qd5 {[%clk 0:00:03]} 58... Qe3+ {[%clk 0:00:16.6]} 59. Ka5 {[%clk 0:00:02.7]}
59... Qd4 {[%clk 0:00:16.7]} 60. Qe6 {[%clk 0:00:02.4]} 60... e4 {[%clk
0:00:15.3]} 61. Qg6 {[%clk 0:00:01.3]} 61... e3 {[%clk 0:00:15.2]} 62. Qg2+
{[%clk 0:00:02.2]} 62... Kc1 {[%clk 0:00:15.2]} 63. Qf1+ {[%clk 0:00:02.2]}
63... Kc2 {[%clk 0:00:15.4]} 64. Qe2+ {[%clk 0:00:02.6]} 64... Kxb3 {[%clk
0:00:15.8]} 65. Qc4+ {[%clk 0:00:03.4]} 65... Qxc4 {[%clk 0:00:15.5]} 0-1

[Event "*** Titled Tuesday Blitz"]
[Site "Chess.com"]
[Date "2021.03.02"]
[Round "4"]
[White "UmarovSabir"]
[Black "ErikRonka"]
[Result "0-1"]
[WhiteElo "2310"]
[BlackElo "2474"]
[TimeControl "180+1"]
[EndTime "10:40:35 PST"]
[Termination "ErikRonka won on time"]

1. e4 {[%clk 0:03:00.7]} 1... c6 {[%clk 0:02:59.6]} 2. d4 {[%clk 0:02:58.8]}
2... d5 {[%clk 0:03:00.5]} 3. Bd3 {[%clk 0:02:58.5]} 3... dxe4 {[%clk
0:03:00.1]} 4. Bxe4 {[%clk 0:02:58.5]} 4... Nf6 {[%clk 0:03:00.6]} 5. Bf3 {[%clk
0:02:58.9]} 5... Bf5 {[%clk 0:03:00.5]} 6. Ne2 {[%clk 0:02:59.2]} 6... e6 {[%clk
0:03:01]} 7. O-O {[%clk 0:02:59.5]} 7... Nbd7 {[%clk 0:03:01.1]} 8. Nd2 {[%clk
0:02:58.7]} 8... Bd6 {[%clk 0:03:00]} 9. Nc4 {[%clk 0:02:58.1]} 9... Bc7 {[%clk
0:02:59.6]} 10. h3 {[%clk 0:02:55.4]} 10... O-O {[%clk 0:02:55.7]} 11. c3 {[%clk
0:02:52]} 11... h6 {[%clk 0:02:53.6]} 12. Re1 {[%clk 0:02:47.7]} 12... Bh7
{[%clk 0:02:45.9]} 13. a4 {[%clk 0:02:46.3]} 13... Nb6 {[%clk 0:02:38.5]} 14.
Ne5 {[%clk 0:02:33.3]} 14... Bxe5 {[%clk 0:02:10.7]} 15. dxe5 {[%clk 0:02:32.1]}
15... Qxd1 {[%clk 0:02:11.6]} 16. Rxd1 {[%clk 0:02:31.8]} 16... Nfd5 {[%clk
0:02:12.1]} 17. Nd4 {[%clk 0:01:35.9]} 17... Nc4 {[%clk 0:02:08.4]} 18. Re1
{[%clk 0:01:32.8]} 18... a5 {[%clk 0:01:47.8]} 19. b3 {[%clk 0:01:31.3]} 19...
Ncb6 {[%clk 0:01:47.3]} 20. Ba3 {[%clk 0:01:04.3]} 20... Rfd8 {[%clk 0:01:46.7]}
21. Rac1 {[%clk 0:00:53.9]} 21... Nf4 {[%clk 0:01:38.7]} 22. Rcd1 {[%clk
0:00:30.4]} 22... Nbd5 {[%clk 0:01:04.6]} 23. Bxd5 {[%clk 0:00:19.8]} 23... cxd5
{[%clk 0:01:01]} 24. g3 {[%clk 0:00:16.9]} 24... Ng6 {[%clk 0:00:49.4]} 25. f4
{[%clk 0:00:15.7]} 25... Nf8 {[%clk 0:00:47.9]} 26. Bxf8 {[%clk 0:00:14.1]}
26... Kxf8 {[%clk 0:00:48.8]} 27. Kf2 {[%clk 0:00:13.8]} 27... Rac8 {[%clk
0:00:47.7]} 28. Nb5 {[%clk 0:00:13.4]} 28... Rc5 {[%clk 0:00:45.9]} 29. Rd2
{[%clk 0:00:12.6]} 29... Rdc8 {[%clk 0:00:45.2]} 30. Re3 {[%clk 0:00:10.7]}
30... Ke7 {[%clk 0:00:36.1]} 31. Ke2 {[%clk 0:00:09.3]} 31... h5 {[%clk
0:00:34.7]} 32. Rd4 {[%clk 0:00:07.9]} 32... Bf5 {[%clk 0:00:33.9]} 33. h4
{[%clk 0:00:06.9]} 33... Bb1 {[%clk 0:00:28.8]} 34. Kd2 {[%clk 0:00:06.3]} 34...
Bg6 {[%clk 0:00:26.4]} 35. Kc1 {[%clk 0:00:05.1]} 35... Rd8 {[%clk 0:00:21.3]}
36. Kb2 {[%clk 0:00:05.3]} 36... f6 {[%clk 0:00:21.4]} 37. exf6+ {[%clk
0:00:04.9]} 37... Kxf6 {[%clk 0:00:22.3]} 38. Rd2 {[%clk 0:00:04]} 38... Be8
{[%clk 0:00:22]} 39. Rde2 {[%clk 0:00:03.9]} 39... Bd7 {[%clk 0:00:20.5]} 40.
Nd4 {[%clk 0:00:03.9]} 40... Re8 {[%clk 0:00:20.6]} 41. Re5 {[%clk 0:00:02.7]}
41... g6 {[%clk 0:00:20.2]} 42. R2e3 {[%clk 0:00:02.5]} 42... Rc7 {[%clk
0:00:19.8]} 43. Nf3 {[%clk 0:00:02.3]} 43... Rec8 {[%clk 0:00:17.6]} 44. Ng5
{[%clk 0:00:02.1]} 44... Rc6 {[%clk 0:00:18]} 45. Nh7+ {[%clk 0:00:01.6]} 45...
Kg7 {[%clk 0:00:17.4]} 46. Ng5 {[%clk 0:00:02.5]} 46... b5 {[%clk 0:00:18.3]}
47. Nf3 {[%clk 0:00:02.3]} 47... bxa4 {[%clk 0:00:17.5]} 48. bxa4 {[%clk
0:00:03.2]} 48... Rb6+ {[%clk 0:00:17.9]} 49. Kc2 {[%clk 0:00:03.6]} 49... Bxa4+
{[%clk 0:00:17.5]} 50. Kc1 {[%clk 0:00:03.1]} 50... Bd7 {[%clk 0:00:16.6]} 51.
Nd4 {[%clk 0:00:02.8]} 51... Kf6 {[%clk 0:00:13.4]} 52. Re2 {[%clk 0:00:02.6]}
52... Rcb8 {[%clk 0:00:12.5]} 53. Ra2 {[%clk 0:00:01.5]} 53... a4 {[%clk
0:00:11.4]} 0-1

[Event "*** Titled Tuesday Blitz"]
[Site "Chess.com"]
[Date "2021.03.02"]
[Round "4"]
[White "Zemerovv"]
[Black "The_Machine04"]
[Result "1-0"]
[WhiteElo "2282"]
[BlackElo "2423"]
[TimeControl "180+1"]
[EndTime "10:40:35 PST"]
[Termination "Zemerovv won by resignation"]

1. d4 {[%clk 0:02:58.7]} 1... d6 {[%clk 0:03:00.2]} 2. Nf3 {[%clk 0:02:59.1]}
2... Nf6 {[%clk 0:03:00.1]} 3. Nbd2 {[%clk 0:02:57.4]} 3... Nbd7 {[%clk
0:02:54.5]} 4. e3 {[%clk 0:02:56.5]} 4... e5 {[%clk 0:02:52.6]} 5. b4 {[%clk
0:02:55.8]} 5... Be7 {[%clk 0:02:50]} 6. Bb2 {[%clk 0:02:55.5]} 6... exd4 {[%clk
0:02:50.9]} 7. exd4 {[%clk 0:02:52.7]} 7... O-O {[%clk 0:02:51.8]} 8. Bd3 {[%clk
0:02:52.1]} 8... c5 {[%clk 0:02:51.8]} 9. bxc5 {[%clk 0:02:49.6]} 9... dxc5
{[%clk 0:02:52.7]} 10. O-O {[%clk 0:02:46.3]} 10... cxd4 {[%clk 0:02:48.5]} 11.
Bxd4 {[%clk 0:02:43.9]} 11... Nb6 {[%clk 0:02:47.3]} 12. Ne4 {[%clk 0:02:36.5]}
12... Nxe4 {[%clk 0:02:46]} 13. Bxe4 {[%clk 0:02:34.7]} 13... Bf6 {[%clk
0:02:46.7]} 14. Qd3 {[%clk 0:02:28.9]} 14... g6 {[%clk 0:02:45.2]} 15. Rad1
{[%clk 0:02:22.2]} 15... Bxd4 {[%clk 0:02:44.1]} 16. Nxd4 {[%clk 0:02:20.3]}
16... Rb8 {[%clk 0:02:31.6]} 17. Qg3 {[%clk 0:02:18.5]} 17... Bd7 {[%clk
0:02:18.6]} 18. Nf5 {[%clk 0:02:00.8]} 18... Qf6 {[%clk 0:02:06.7]} 19. Rd6
{[%clk 0:01:53.7]} 19... Be6 {[%clk 0:01:53.1]} 20. Rfd1 {[%clk 0:01:47.1]}
20... Nc4 {[%clk 0:01:49]} 21. Nh6+ {[%clk 0:01:35.6]} 21... Kg7 {[%clk
0:01:38.8]} 22. Ng4 {[%clk 0:01:35.2]} 22... Qb2 {[%clk 0:00:36.9]} 23. Rxe6
{[%clk 0:01:26.5]} 23... fxe6 {[%clk 0:00:33.7]} 24. Qc7+ {[%clk 0:01:20.2]}
24... Rf7 {[%clk 0:00:06.9]} 25. Qxc4 {[%clk 0:01:18.5]} 25... Rbf8 {[%clk
0:00:05.8]} 26. Qd4+ {[%clk 0:01:13.3]} 26... Qxd4 {[%clk 0:00:04.8]} 27. Rxd4
{[%clk 0:01:12.8]} 27... Rc7 {[%clk 0:00:04.4]} 28. Ne3 {[%clk 0:01:06.1]} 28...
b6 {[%clk 0:00:04.7]} 29. h4 {[%clk 0:01:04.9]} 29... Kf6 {[%clk 0:00:04.9]} 30.
f4 {[%clk 0:01:03.5]} 30... Ke7 {[%clk 0:00:04.9]} 31. g3 {[%clk 0:01:00.2]}
31... Rc3 {[%clk 0:00:04.5]} 32. Kf2 {[%clk 0:00:58.6]} 32... Rfc8 {[%clk
0:00:03.8]} 33. Bd3 {[%clk 0:00:58.2]} 33... R3c5 {[%clk 0:00:02.4]} 34. Re4
{[%clk 0:00:58.2]} 34... Kf7 {[%clk 0:00:02.1]} 35. Kf3 {[%clk 0:00:58.1]} 35...
R8c7 {[%clk 0:00:02]} 36. Ng4 {[%clk 0:00:57.9]} 36... Ke7 {[%clk 0:00:01.6]}
37. Ne5 {[%clk 0:00:57.8]} 37... b5 {[%clk 0:00:02.2]} 38. Rd4 {[%clk
0:00:57.8]} 38... a6 {[%clk 0:00:02.7]} 39. h5 {[%clk 0:00:56.6]} 39... a5
{[%clk 0:00:02.9]} 40. hxg6 {[%clk 0:00:55.7]} 40... hxg6 {[%clk 0:00:03.8]} 41.
Nxg6+ {[%clk 0:00:55.8]} 41... Kf6 {[%clk 0:00:04.7]} 42. Ne5 {[%clk 0:00:55.6]}
42... b4 {[%clk 0:00:05.3]} 43. g4 {[%clk 0:00:55.3]} 43... Ke7 {[%clk
0:00:05.8]} 44. g5 {[%clk 0:00:54.9]} 44... Rxc2 {[%clk 0:00:05]} 45. Bxc2
{[%clk 0:00:54.1]} 45... Rxc2 {[%clk 0:00:05.9]} 46. Rd7+ {[%clk 0:00:53.8]}
46... Ke8 {[%clk 0:00:06.2]} 47. g6 {[%clk 0:00:53.5]} 47... Rc3+ {[%clk
0:00:03.2]} 48. Ke4 {[%clk 0:00:51.7]} 48... Rc1 {[%clk 0:00:03.4]} 49. g7
{[%clk 0:00:50.6]} 49... Rg1 {[%clk 0:00:03.5]} 50. Ra7 {[%clk 0:00:50.1]} 50...
a4 {[%clk 0:00:03.2]} 51. Rxa4 {[%clk 0:00:48.4]} 51... Ke7 {[%clk 0:00:03]} 52.
Rxb4 {[%clk 0:00:48.2]} 52... Rxg7 {[%clk 0:00:02.5]} 53. Rb7+ {[%clk 0:00:48]}
53... Kf6 {[%clk 0:00:03.2]} 54. Rxg7 {[%clk 0:00:48.9]} 54... Kxg7 {[%clk
0:00:04.1]} 55. f5 {[%clk 0:00:48.5]} 55... Kf6 {[%clk 0:00:05]} 56. a4 {[%clk
0:00:41.5]} 56... exf5+ {[%clk 0:00:04.9]} 57. Kd5 {[%clk 0:00:40.5]} 57... f4
{[%clk 0:00:04.5]} 58. Nf3 {[%clk 0:00:39.1]} 58... Ke7 {[%clk 0:00:04.8]} 59.
Kc6 {[%clk 0:00:37.7]} 59... Ke6 {[%clk 0:00:04.6]} 60. a5 {[%clk 0:00:36.6]}
60... Kf5 {[%clk 0:00:05.5]} 61. a6 {[%clk 0:00:36.1]} 61... Ke4 {[%clk
0:00:06.4]} 62. Ng5+ {[%clk 0:00:35.6]} 62... Ke3 {[%clk 0:00:06.1]} 63. a7
{[%clk 0:00:34.3]} 63... f3 {[%clk 0:00:07]} 64. Nxf3 {[%clk 0:00:33.2]} 64...
Kxf3 {[%clk 0:00:07.5]} 65. a8=Q {[%clk 0:00:33.2]} 65... Ke3 {[%clk 0:00:07.3]}
66. Qa3+ {[%clk 0:00:33.2]} 66... Ke4 {[%clk 0:00:07.2]} 67. Kc5 {[%clk
0:00:32.9]} 1-0

[Event "*** Titled Tuesday Blitz"]
[Site "Chess.com"]
[Date "2021.03.02"]
[Round "4"]
[White "Matensien"]
[Black "Firegrizzly"]
[Result "0-1"]
[WhiteElo "2495"]
[BlackElo "2671"]
[TimeControl "180+1"]
[EndTime "10:40:36 PST"]
[Termination "Firegrizzly won on time"]

1. Nf3 {[%clk 0:03:00.9]} 1... Nf6 {[%clk 0:02:59.7]} 2. c4 {[%clk 0:03:01.4]}
2... g6 {[%clk 0:03:00.3]} 3. d4 {[%clk 0:03:01.7]} 3... Bg7 {[%clk 0:03:00.9]}
4. Nc3 {[%clk 0:03:02.3]} 4... O-O {[%clk 0:03:00.7]} 5. e4 {[%clk 0:03:02.9]}
5... d6 {[%clk 0:03:01.3]} 6. Be2 {[%clk 0:03:03.4]} 6... c5 {[%clk 0:03:01.8]}
7. O-O {[%clk 0:03:03.4]} 7... Nc6 {[%clk 0:03:02]} 8. d5 {[%clk 0:02:43]} 8...
Na5 {[%clk 0:03:01.8]} 9. h3 {[%clk 0:02:41.2]} 9... e5 {[%clk 0:03:00.8]} 10.
Ne1 {[%clk 0:02:13.6]} 10... Bd7 {[%clk 0:02:55.8]} 11. f4 {[%clk 0:02:08.8]}
11... exf4 {[%clk 0:02:51.8]} 12. Bxf4 {[%clk 0:02:08.1]} 12... Qe7 {[%clk
0:02:47.9]} 13. Nf3 {[%clk 0:01:21.4]} 13... Nxe4 {[%clk 0:02:31.5]} 14. Nxe4
{[%clk 0:01:20.5]} 14... Qxe4 {[%clk 0:02:32.4]} 15. Bxd6 {[%clk 0:01:20.4]}
15... Nxc4 {[%clk 0:02:23.7]} 16. Bxc4 {[%clk 0:01:17.1]} 16... Qxc4 {[%clk
0:02:22.5]} 17. Bxf8 {[%clk 0:01:17.7]} 17... Rxf8 {[%clk 0:02:21.9]} 18. Qb3
{[%clk 0:01:06.7]} 18... Qxb3 {[%clk 0:01:55.2]} 19. axb3 {[%clk 0:01:06]} 19...
a6 {[%clk 0:01:55.1]} 20. Rf2 {[%clk 0:01:04.6]} 20... Rd8 {[%clk 0:01:50.9]}
21. Rd1 {[%clk 0:00:59.1]} 21... Bf5 {[%clk 0:01:46.2]} 22. Re2 {[%clk 0:00:56]}
22... Kf8 {[%clk 0:01:40.5]} 23. g4 {[%clk 0:00:46]} 23... Bd7 {[%clk
0:01:39.6]} 24. Kg2 {[%clk 0:00:43.8]} 24... Bb5 {[%clk 0:01:27.6]} 25. Rc2
{[%clk 0:00:39.5]} 25... b6 {[%clk 0:01:27.5]} 26. Ng5 {[%clk 0:00:30.4]} 26...
h6 {[%clk 0:01:20.2]} 27. Ne4 {[%clk 0:00:31]} 27... Re8 {[%clk 0:01:09.8]} 28.
Nd6 {[%clk 0:00:24.5]} 28... Rd8 {[%clk 0:01:04.7]} 29. Nxb5 {[%clk 0:00:24]}
29... axb5 {[%clk 0:01:05.6]} 30. Re2 {[%clk 0:00:24]} 30... Bd4 {[%clk
0:01:04.3]} 31. Ra1 {[%clk 0:00:15.4]} 31... Rxd5 {[%clk 0:01:03.9]} 32. Ra8+
{[%clk 0:00:16]} 32... Kg7 {[%clk 0:01:03.2]} 33. Rb8 {[%clk 0:00:11.7]} 33...
Rd6 {[%clk 0:00:59.4]} 34. Rb7 {[%clk 0:00:11.9]} 34... Rf6 {[%clk 0:00:57.2]}
35. Rd7 {[%clk 0:00:07.7]} 35... b4 {[%clk 0:00:56.1]} 36. Rb7 {[%clk
0:00:07.1]} 36... g5 {[%clk 0:00:55.9]} 37. Rd7 {[%clk 0:00:06.6]} 37... Kg6
{[%clk 0:00:56.1]} 38. Rb7 {[%clk 0:00:06.4]} 38... h5 {[%clk 0:00:56.5]} 39.
gxh5+ {[%clk 0:00:04.5]} 39... Kxh5 {[%clk 0:00:56.1]} 40. Kg3 {[%clk 0:00:04]}
40... Kg6 {[%clk 0:00:55.9]} 41. Rd7 {[%clk 0:00:03.5]} 41... Kg7 {[%clk
0:00:54]} 42. Rd5 {[%clk 0:00:04]} 42... Kg6 {[%clk 0:00:54]} 43. Rd8 {[%clk
0:00:04.5]} 43... Rf5 {[%clk 0:00:52.8]} 44. Rg8+ {[%clk 0:00:04.4]} 44... Kf6
{[%clk 0:00:52.3]} 45. Rge8 {[%clk 0:00:04.4]} 45... Be5+ {[%clk 0:00:51.4]} 46.
Kg2 {[%clk 0:00:04]} 46... Bd4 {[%clk 0:00:50.7]} 47. R8e4 {[%clk 0:00:04]}
47... Kg6 {[%clk 0:00:49.5]} 48. Rg4 {[%clk 0:00:04.3]} 48... Rd5 {[%clk
0:00:46]} 49. Rg3 {[%clk 0:00:03.6]} 49... Kh5 {[%clk 0:00:44.6]} 50. Rf3 {[%clk
0:00:03.2]} 50... f5 {[%clk 0:00:43.5]} 51. Re8 {[%clk 0:00:02.6]} 51... Bxb2
{[%clk 0:00:42.2]} 52. Rh8+ {[%clk 0:00:01.9]} 52... Kg6 {[%clk 0:00:41.8]} 53.
Rg8+ {[%clk 0:00:01.9]} 53... Kf6 {[%clk 0:00:41.6]} 54. Re8 {[%clk 0:00:02.7]}
54... Rd2+ {[%clk 0:00:40.5]} 55. Rf2 {[%clk 0:00:03.2]} 55... Rxf2+ {[%clk
0:00:40]} 56. Kxf2 {[%clk 0:00:04.1]} 56... Bd4+ {[%clk 0:00:39]} 57. Ke2 {[%clk
0:00:03.8]} 57... c4 {[%clk 0:00:39.5]} 58. bxc4 {[%clk 0:00:03.4]} 58... b3
{[%clk 0:00:39.9]} 59. Kd2 {[%clk 0:00:02.7]} 59... b2 {[%clk 0:00:39.1]} 60.
Kc2 {[%clk 0:00:03.2]} 60... f4 {[%clk 0:00:39.1]} 61. Rd8 {[%clk 0:00:03.4]}
61... Ke5 {[%clk 0:00:39]} 62. Re8+ {[%clk 0:00:02.8]} 62... Kf5 {[%clk
0:00:38.9]} 63. Rg8 {[%clk 0:00:03.7]} 63... f3 {[%clk 0:00:38.6]} 64. Rf8+
{[%clk 0:00:04.6]} 64... Ke4 {[%clk 0:00:38.6]} 65. Kb1 {[%clk 0:00:04.3]} 65...
f2 {[%clk 0:00:37.5]} 66. Rf7 {[%clk 0:00:02.6]} 66... Ke3 {[%clk 0:00:37.6]}
67. Rf8 {[%clk 0:00:02.3]} 67... Ke2 {[%clk 0:00:37.7]} 68. Re8+ {[%clk
0:00:02.6]} 68... Be3 {[%clk 0:00:38]} 69. Rf8 {[%clk 0:00:01.8]} 69... Bf4
{[%clk 0:00:38]} 0-1